[Event "GER-ch Youth U10w 2019"]
[Site "Willingen"]
[Date "2019.06.13"]
[Round "8.1"]
[White "Wartenberg, Alissa"]
[Black "Glotz, Diana"]
[Result "1-0"]
[ECO "B01"]
[WhiteElo "1291"]
[BlackElo "1244"]
[Annotator "NA"]
[PlyCount "69"]
[EventDate "2019.06.07"]
[EventType "swiss"]
[EventRounds "11"]
[EventCountry "GER"]
[SourceTitle "playchess.com"]
[Source "ChessBase"]
[SourceQuality "1"]
[TimeControl "40/4500+30:900+30"]

1. e4 {[%emt 0:00:00]} d5 {[%emt 0:00:00]} 2. exd5 {[%emt 0:00:00]} Qxd5 {[%emt 0:00:00]} 3. Nc3 {[%emt 0:00:00]} Qd8 {[%emt 0:00:03]} 4. Nf3 {[%emt 0:00:11]} Nf6 {[%emt 0:00:18]} 5. d4 {[%emt 0:00:21]} c6 {[%emt 0:00:39]} 6. Bf4 {[%emt 0:00:17]} Bg4 {[%emt 0:00:33]} 7. Be2 {[%emt 0:00:51]} e6 {[%emt 0:00:51]} 8. O-O {[%emt 0:00:14]} Be7 {[%emt 0:00:46]} 9. h3 {[%emt 0:00:16]} Bh5 {[%emt 0:00:52]} 10. Qd2 {[%emt 0:01:45]} O-O {[%emt 0:01:45]} 11. Rad1 {[%emt 0:00:51]} Nbd7 {[%emt 0:00:50]} 12. Rfe1 {[%emt 0:00:59]} Nb6 {[%emt 0:06:18]} 13. Ne5 {[%emt 0:05:34]} c5 {[%emt 0:10:10]} 14. Bg5 {[%emt 0:04:09]} Rc8 {[%emt 0:04:21]} 15. Bxf6 {[%emt 0:00:26]} Bxe2 {[%emt 0:04:27]} 16. Bxe7 {[%emt 0:00:10]} Qxe7 {[%emt 0:00:23]} 17. Rxe2 {[%emt 0:00:17]} f6 {[%emt 0:02:19]} 18. Nf3 {[%emt 0:01:30]} Nc4 {[%emt 0:00:28]} 19. Qe1 {[%emt 0:01:08]} Rfe8 {[%emt 0:03:24]} 20. b3 {[%emt 0:01:28]} Nb6 {[%emt 0:01:25]} 21. d5 {[%emt 0:00:53]} e5 {[%emt 0:06:16]} 22. Ne4 {[%emt 0:03:04]} c4 {[%emt 0:01:11]} 23. Ng3 {[%emt 0:00:47]} g6 {[%emt 0:01:49]} 24. d6 {[%emt 0:02:19]} Qe6 {[%emt 0:02:24]} 25. a4 {[%emt 0:05:10]} cxb3 {[%emt 0:02:35]} 26. cxb3 {[%emt 0:00:14]} Red8 {[%emt 0:00:28]} 27. Ne4 {[%emt 0:00:55]} Kg7 {[%emt 0:04:20]} 28. Qb4 {[%emt 0:06:12]} Rd7 {[%emt 0:07:00]} 29. Nc5 {[%emt 0:01:25]} Rxc5 {[%emt 0:22:49]} 30. Qxc5 {[%emt 0:00:09]} Qxb3 {[%emt 0:00:45]} 31. Qc2 {[%emt 0:00:21]} Qe6 {[%emt 0:00:27]} 32. Qc1 {[%emt 0:01:04]} Nxa4 {[%emt 0:00:28]} 33. Qa3 {[%emt 0:01:02]} b5 {[%emt 0:00:29]} 34. Rc2 {[%emt 0:00:24]} Nb6 {[%emt 0:00:34]} 35. Rc7 {[%emt 0:00:26] normal} 1-0

[Event "GER-ch Youth U10w 2019"]
[Site "Willingen"]
[Date "2019.06.13"]
[Round "8.2"]
[White "Mirnaya, Veronika"]
[Black "Oellrich, Emma"]
[Result "1-0"]
[ECO "A40"]
[WhiteElo "1237"]
[BlackElo "1484"]
[Annotator "NA"]
[PlyCount "53"]
[EventDate "2019.06.07"]
[EventType "swiss"]
[EventRounds "11"]
[EventCountry "GER"]
[SourceTitle "playchess.com"]
[Source "ChessBase"]
[SourceQuality "1"]
[TimeControl "40/4500+30:900+30"]

1. d4 {[%emt 0:00:00]} e6 {[%emt 0:00:00]} 2. Bf4 {[%emt 0:00:00]} c5 {[%emt 0:00:00]} 3. e3 {[%emt 0:00:36]} d5 {[%emt 0:00:02]} 4. c3 {[%emt 0:00:56]} Nc6 {[%emt 0:00:17]} 5. Nf3 {[%emt 0:00:32]} Nf6 {[%emt 0:00:14]} 6. Nbd2 {[%emt 0:00:54]} cxd4 {[%emt 0:00:22]} 7. cxd4 {[%emt 0:02:52]} Bd6 {[%emt 0:02:27]} 8. Bg3 {[%emt 0:00:30]} O-O {[%emt 0:01:45]} 9. Bd3 {[%emt 0:00:30]} Re8 {[%emt 0:05:21]} 10. Ne5 {[%emt 0:00:33]} Qc7 {[%emt 0:02:34]} 11. f4 {[%emt 0:00:32]} Bxe5 {[%emt 0:03:57]} 12. dxe5 {[%emt 0:00:31]} Nd7 {[%emt 0:00:19]} 13. O-O {[%emt 0:00:36]} Qb6 {[%emt 0:00:09]} 14. Re1 {[%emt 0:16:11]} Qxb2 {[%emt 0:00:43]} 15. Nf3 {[%emt 0:00:42]} f6 {[%emt 0:01:24]} 16. exf6 {[%emt 0:00:45]} Nxf6 {[%emt 0:00:58]} 17. Bh4 {[%emt 0:03:33]} Rf8 {[%emt 0:04:46]} 18. Rb1 {[%emt 0:16:54]} Qxa2 {[%emt 0:04:00]} 19. Bxf6 {[%emt 0:02:18]} gxf6 {[%emt 0:03:40]} 20. Nh4 {[%emt 0:06:21]} f5 {[%emt 0:05:45]} 21. g4 {[%emt 0:04:30]} Kh8 {[%emt 0:00:31]} 22. gxf5 {[%emt 0:00:58]} exf5 {[%emt 0:02:08]} 23. Qh5 {[%emt 0:00:44]} Rg8+ {[%emt 0:01:09]} 24. Kh1 {[%emt 0:03:14]} d4 {[%emt 0:04:38]} 25. e4 {[%emt 0:03:45]} fxe4 {[%emt 0:01:19]} 26. Bxe4 {[%emt 0:00:08]} Bg4 {[%emt 0:01:14]} 27. Qxh7# {[%emt 0:00:21] normal} 1-0

[Event "GER-ch Youth U10w 2019"]
[Site "Willingen"]
[Date "2019.06.13"]
[Round "8.3"]
[White "Bangiev, Katharina"]
[Black "Trunz, Tamila"]
[Result "0-1"]
[ECO "A04"]
[WhiteElo "1003"]
[BlackElo "1273"]
[Annotator "NA"]
[PlyCount "120"]
[EventDate "2019.06.07"]
[EventType "swiss"]
[EventRounds "11"]
[EventCountry "GER"]
[SourceTitle "playchess.com"]
[Source "ChessBase"]
[SourceQuality "1"]
[TimeControl "40/4500+30:900+30"]

1. Nf3 {[%emt 0:00:00]} c5 {[%emt 0:00:00]} 2. g3 {[%emt 0:00:00]} d6 {[%emt 0:00:00]} 3. Bg2 {[%emt 0:00:11]} Nc6 {[%emt 0:00:04]} 4. O-O {[%emt 0:00:18]} g6 {[%emt 0:00:31]} 5. d3 {[%emt 0:00:12]} Bg7 {[%emt 0:00:12]} 6. Nc3 {[%emt 0:00:59]} e6 {[%emt 0:00:24]} 7. e4 {[%emt 0:00:23]} Nge7 {[%emt 0:00:28]} 8. Be3 {[%emt 0:00:46]} Nd4 {[%emt 0:00:18]} 9. Bxd4 {[%emt 0:00:42]} cxd4 {[%emt 0:01:05]} 10. Ne2 {[%emt 0:01:11]} Nc6 {[%emt 0:00:57]} 11. c3 {[%emt 0:02:02]} dxc3 {[%emt 0:06:24]} 12. bxc3 {[%emt 0:00:52]} O-O {[%emt 0:00:48]} 13. d4 {[%emt 0:01:40]} Rb8 {[%emt 0:02:21]} 14. Rb1 {[%emt 0:09:26]} b5 {[%emt 0:00:33]} 15. a4 {[%emt 0:02:47]} Qa5 {[%emt 0:06:34]} 16. axb5 {[%emt 0:00:48]} Rxb5 {[%emt 0:00:38]} 17. Ra1 {[%emt 0:01:45]} Qb6 {[%emt 0:02:07]} 18. Qd3 {[%emt 0:02:52]} a5 {[%emt 0:01:56]} 19. Rfb1 {[%emt 0:02:16]} Ba6 {[%emt 0:06:01]} 20. c4 {[%emt 0:00:53]} Rxb1+ {[%emt 0:01:19]} 21. Rxb1 {[%emt 0:00:10]} Nb4 {[%emt 0:02:17]} 22. Qc3 {[%emt 0:02:36]} Rc8 {[%emt 0:00:32]} 23. Nd2 {[%emt 0:01:57]} Qc7 {[%emt 0:02:45]} 24. Qa3 {[%emt 0:06:07]} d5 {[%emt 0:11:33]} 25. exd5 {[%emt 0:05:30]} exd5 {[%emt 0:00:35]} 26. Bh3 {[%emt 0:01:04]} Re8 {[%emt 0:00:49]} 27. Qf3 {[%emt 0:06:37]} dxc4 {[%emt 0:01:56]} 28. Rc1 {[%emt 0:04:18]} Bb7 {[%emt 0:03:36]} 29. Qf4 {[%emt 0:06:11]} Qxf4 {[%emt 0:00:54]} 30. Nxf4 {[%emt 0:00:14]} c3 {[%emt 0:02:48]} 31. Rxc3 {[%emt 0:01:07]} Re1+ {[%emt 0:01:34]} 32. Nf1 {[%emt 0:01:47]} Bxd4 {[%emt 0:01:10]} 33. Ra3 {[%emt 0:00:51]} Bb6 {[%emt 0:02:23]} 34. Ng2 {[%emt 0:02:22]} Re2 {[%emt 0:03:17]} 35. Nge3 {[%emt 0:03:13]} Nd5 {[%emt 0:06:11]} 36. Bg4 {[%emt 0:02:57]} Rb2 {[%emt 0:04:59]} 37. Rd3 {[%emt 0:04:45]} Nxe3 {[%emt 0:01:20]} 38. Nxe3 {[%emt 0:00:19]} Rb1+ {[%emt 0:01:15]} 39. Rd1 {[%emt 0:03:06]} Rxd1+ {[%emt 0:00:36]} 40. Bxd1 {[%emt 0:00:11]} Kf8 {[%emt 0:02:41]} 41. Kf1 {[%emt 0:15:29]} Ba6+ {[%emt 0:16:47]} 42. Ke1 {[%emt 0:00:16]} Bxe3 {[%emt 0:00:44]} 43. fxe3 {[%emt 0:00:07]} Ke7 {[%emt 0:00:40]} 44. Kd2 {[%emt 0:00:16]} Kd6 {[%emt 0:00:27]} 45. Kc3 {[%emt 0:01:03]} Kc5 {[%emt 0:02:12]} 46. Bb3 {[%emt 0:00:35]} f6 {[%emt 0:01:13]} 47. Bg8 {[%emt 0:02:52]} h6 {[%emt 0:00:39]} 48. Kb3 {[%emt 0:01:12]} Bb5 {[%emt 0:00:58]} 49. Kc3 {[%emt 0:01:00]} a4 {[%emt 0:01:15]} 50. Ba2 {[%emt 0:01:12]} g5 {[%emt 0:02:38]} 51. Be6 {[%emt 0:01:07]} Kd6 {[%emt 0:01:07]} 52. Ba2 {[%emt 0:00:40]} Ke5 {[%emt 0:00:40]} 53. Kd2 {[%emt 0:02:06]} h5 {[%emt 0:00:00]} 54. Ke1 {[%emt 0:00:00]} h4 {[%emt 0:00:00]} 55. Kf2 {[%emt 0:00:00]} Ke4 {[%emt 0:00:00]} 56. Bb1+ {[%emt 0:00:00]} Bd3 {[%emt 0:00:00]} 57. Ba2 {[%emt 0:00:00]} a3 {[%emt 0:00:00]} 58. gxh4 {[%emt 0:00:00]} gxh4 {[%emt 0:00:00]} 59. Bf7 {[%emt 0:00:00]} Bb1 {[%emt 0:00:00]} 60. Bg6+ {[%emt 0:00:00]} f5 {[%emt 0:00:00] normal} 0-1

[Event "GER-ch Youth U10w 2019"]
[Site "Willingen"]
[Date "2019.06.13"]
[Round "8.4"]
[White "Proettel, Ela"]
[Black "Lichtenegger, Katharina"]
[Result "1-0"]
[ECO "D00"]
[WhiteElo "1333"]
[BlackElo "1238"]
[Annotator "NA"]
[PlyCount "97"]
[EventDate "2019.06.07"]
[EventType "swiss"]
[EventRounds "11"]
[EventCountry "GER"]
[SourceTitle "playchess.com"]
[Source "ChessBase"]
[SourceQuality "1"]
[TimeControl "40/4500+30:900+30"]

1. d4 {[%emt 0:00:00]} d5 {[%emt 0:00:00]} 2. Bf4 {[%emt 0:00:00]} Nf6 {[%emt 0:01:04]} 3. e3 {[%emt 0:00:12]} Bf5 {[%emt 0:01:26]} 4. Nf3 {[%emt 0:04:00]} Nbd7 {[%emt 0:02:27]} 5. c4 {[%emt 0:02:55]} e6 {[%emt 0:02:27]} 6. Nc3 {[%emt 0:04:26]} c6 {[%emt 0:01:51]} 7. Qb3 {[%emt 0:01:19]} b6 {[%emt 0:04:24]} 8. Be2 {[%emt 0:00:40]} Ne4 {[%emt 0:04:52]} 9. Nxe4 {[%emt 0:01:49]} Bxe4 {[%emt 0:01:09]} 10. O-O {[%emt 0:02:55]} c5 {[%emt 0:04:27]} 11. Rfe1 {[%emt 0:05:49]} Be7 {[%emt 0:03:07]} 12. Nd2 {[%emt 0:06:32]} dxc4 {[%emt 0:05:47]} 13. Bxc4 Bc6 {[%emt 0:04:34]} 14. d5 {[%emt 0:18:56]} exd5 {[%emt 0:05:46]} 15. Bxd5 {[%emt 0:00:24]} Bxd5 {[%emt 0:00:47]} 16. Qxd5 {[%emt 0:00:31]} Nf6 {[%emt 0:01:36]} 17. Qc6+ {[%emt 0:07:34]} Nd7 {[%emt 0:05:03]} 18. Nc4 {[%emt 0:05:03]} O-O {[%emt 0:04:11]} 19. Red1 {[%emt 0:01:02]} Bf6 {[%emt 0:09:36]} 20. Qxd7 {[%emt 0:01:29]} Qxd7 {[%emt 0:00:17]} 21. Rxd7 {[%emt 0:00:24]} Rad8 {[%emt 0:00:36]} 22. Rad1 {[%emt 0:01:04]} Rfe8 {[%emt 0:00:53]} 23. Rxd8 {[%emt 0:01:43]} Bxd8 {[%emt 0:00:36]} 24. Rd7 {[%emt 0:00:45]} Bf6 {[%emt 0:01:31]} 25. Nd6 {[%emt 0:02:42]} Rd8 {[%emt 0:01:25]} 26. Rxd8+ {[%emt 0:01:21]} Bxd8 {[%emt 0:00:10]} 27. Kf1 {[%emt 0:00:54]} Kf8 {[%emt 0:00:58]} 28. Nb5 {[%emt 0:00:50]} a6 {[%emt 0:00:23]} 29. Nc7 {[%emt 0:00:54]} a5 {[%emt 0:00:25]} 30. Nd5 {[%emt 0:01:13]} g5 {[%emt 0:00:55]} 31. Bc7 {[%emt 0:00:46]} Bxc7 {[%emt 0:00:46]} 32. Nxc7 {[%emt 0:00:14]} c4 {[%emt 0:01:11]} 33. Nd5 {[%emt 0:00:21]} b5 {[%emt 0:00:38]} 34. f4 {[%emt 0:00:21]} g4 {[%emt 0:01:18]} 35. Nf6 {[%emt 0:00:23]} Kg7 {[%emt 0:01:15]} 36. Nxg4 {[%emt 0:00:47]} a4 {[%emt 0:00:37]} 37. Ke2 {[%emt 0:00:19]} b4 {[%emt 0:01:39]} 38. Ne5 {[%emt 0:00:35]} b3 {[%emt 0:00:49]} 39. a3 {[%emt 0:01:03]} c3 {[%emt 0:00:26]} 40. Nd3 {[%emt 0:01:20]} Kf6 {[%emt 0:01:21]} 41. bxc3 {[%emt 0:15:57]} Ke7 {[%emt 0:15:37]} 42. Nb2 {[%emt 0:00:21]} Kd6 {[%emt 0:00:31]} 43. e4 {[%emt 0:01:38]} Kc5 {[%emt 0:00:50]} 44. Kf3 {[%emt 0:00:53]} Kd6 {[%emt 0:00:49]} 45. Kg4 {[%emt 0:00:16]} f6 {[%emt 0:01:04]} 46. Kf5 {[%emt 0:01:36]} Ke7 {[%emt 0:01:15]} 47. e5 {[%emt 0:00:36]} fxe5 {[%emt 0:00:27]} 48. fxe5 {[%emt 0:00:29]} h5 {[%emt 0:00:20]} 49. c4 {[%emt 0:00:52] normal} 1-0

[Event "GER-ch Youth U10w 2019"]
[Site "Willingen"]
[Date "2019.06.13"]
[Round "8.5"]
[White "Haug, Mara"]
[Black "Moldovan, Tatiana"]
[Result "1-0"]
[ECO "B28"]
[WhiteElo "1097"]
[BlackElo "1269"]
[Annotator "NA"]
[PlyCount "71"]
[EventDate "2019.06.07"]
[EventType "swiss"]
[EventRounds "11"]
[EventCountry "GER"]
[SourceTitle "playchess.com"]
[Source "ChessBase"]
[SourceQuality "1"]
[TimeControl "40/4500+30:900+30"]

1. e4 {[%emt 0:00:00]} c5 {[%emt 0:00:00]} 2. Nf3 {[%emt 0:00:00]} a6 {[%emt 0:00:00]} 3. c4 {[%emt 0:00:05]} Nc6 {[%emt 0:00:39]} 4. d4 {[%emt 0:01:59]} cxd4 {[%emt 0:00:54]} 5. Nxd4 {[%emt 0:00:09]} Nxd4 {[%emt 0:00:42]} 6. Qxd4 {[%emt 0:00:09]} e6 {[%emt 0:01:06]} 7. Nc3 {[%emt 0:01:34]} Ne7 {[%emt 0:00:32]} 8. Be2 {[%emt 0:01:11]} Ng6 {[%emt 0:00:19]} 9. Be3 {[%emt 0:05:59]} d6 {[%emt 0:06:10]} 10. O-O {[%emt 0:02:49]} e5 {[%emt 0:00:24]} 11. Qd2 {[%emt 0:01:59]} Be7 {[%emt 0:00:47]} 12. f4 {[%emt 0:01:39]} exf4 {[%emt 0:01:50]} 13. Bxf4 {[%emt 0:00:50]} O-O {[%emt 0:01:50]} 14. Bg3 {[%emt 0:01:45]} Re8 {[%emt 0:26:27]} 15. Rad1 {[%emt 0:02:30]} Ne5 {[%emt 0:00:28]} 16. Qe3 {[%emt 0:12:10]} Qc7 {[%emt 0:00:39]} 17. Qf2 {[%emt 0:03:29]} Be6 {[%emt 0:00:56]} 18. Nd5 {[%emt 0:02:41]} Qc5 {[%emt 0:04:08]} 19. Qxc5 {[%emt 0:01:09]} dxc5 {[%emt 0:03:00]} 20. Bxe5 {[%emt 0:01:33]} Rac8 {[%emt 0:00:56]} 21. Rf4 {[%emt 0:04:37]} f6 {[%emt 0:02:41]} 22. Bc3 {[%emt 0:01:40]} Kf8 {[%emt 0:11:08]} 23. e5 {[%emt 0:03:15]} f5 {[%emt 0:01:28]} 24. g4 {[%emt 0:01:25]} g6 {[%emt 0:00:10]} 25. gxf5 {[%emt 0:00:29]} gxf5 {[%emt 0:01:17]} 26. Bg4 {[%emt 0:02:00]} Bg5 {[%emt 0:00:25]} 27. Rff1 {[%emt 0:00:09]} f4 {[%emt 0:00:37]} 28. Bxe6 {[%emt 0:01:03]} Rxe6 {[%emt 0:00:18]} 29. Nxf4 {[%emt 0:00:09]} Bxf4 {[%emt 0:01:01]} 30. Rxf4+ {[%emt 0:00:07]} Ke7 {[%emt 0:00:06]} 31. Rf6 {[%emt 0:00:51]} Rg8+ {[%emt 0:01:03]} 32. Kf2 {[%emt 0:01:25]} Rg5 {[%emt 0:00:19]} 33. Rd5 {[%emt 0:03:13]} Rxf6+ 34. exf6+ Kf7 {[%emt 0:13:05]} 35. Rxg5 {[%emt 0:00:36]} b6 {[%emt 0:00:39]} 36. Rg7+ {[%emt 0:00:14] normal} 1-0

[Event "GER-ch Youth U10w 2019"]
[Site "Willingen"]
[Date "2019.06.14"]
[Round "9.1"]
[White "Trunz, Tamila"]
[Black "Mirnaya, Veronika"]
[Result "1-0"]
[ECO "C55"]
[WhiteElo "1273"]
[BlackElo "1237"]
[Annotator "NA"]
[PlyCount "58"]
[EventDate "2019.06.07"]
[EventType "swiss"]
[EventRounds "11"]
[EventCountry "GER"]
[SourceTitle "playchess.com"]
[Source "ChessBase"]
[SourceQuality "1"]
[TimeControl "40/4500+30:900+30"]

1. e4 {[%emt 0:00:00]} e5 {[%emt 0:00:00]} 2. Nf3 {[%emt 0:00:00]} Nc6 {[%emt 0:00:00]} 3. d4 {[%emt 0:00:00]} exd4 {[%emt 0:00:10]} 4. Bc4 {[%emt 0:00:11]} Nf6 {[%emt 0:01:03]} 5. e5 {[%emt 0:00:28]} d5 {[%emt 0:01:31]} 6. Bb5 {[%emt 0:00:45]} Ne4 {[%emt 0:00:21]} 7. Nxd4 {[%emt 0:00:44]} Bd7 {[%emt 0:01:08]} 8. Bxc6 {[%emt 0:00:22]} bxc6 {[%emt 0:00:32]} 9. O-O {[%emt 0:01:08]} Bc5 {[%emt 0:00:43]} 10. c3 {[%emt 0:02:08]} O-O {[%emt 0:00:43]} 11. f3 {[%emt 0:02:03]} Ng5 {[%emt 0:01:13]} 12. f4 {[%emt 0:02:55]} Ne4 {[%emt 0:03:04]} 13. Nd2 {[%emt 0:01:53]} Bf5 {[%emt 0:01:30]} 14. Nxe4 {[%emt 0:02:02]} Bxe4 {[%emt 0:00:10]} 15. Qg4 {[%emt 0:03:28]} Qe7 {[%emt 0:15:50]} 16. Kh1 {[%emt 0:02:02]} Bxd4 {[%emt 0:00:33]} 17. cxd4 {[%emt 0:00:24]} f6 {[%emt 0:04:08]} 18. Bd2 {[%emt 0:04:18]} Bd3 {[%emt 0:02:03]} 19. Rfe1 {[%emt 0:06:19]} Rfe8 {[%emt 0:12:20]} 20. Rac1 {[%emt 0:05:07]} Qe6 {[%emt 0:11:13]} 21. Qg3 {[%emt 0:05:35]} Be4 {[%emt 0:02:51]} 22. Rc5 {[%emt 0:06:30]} Rab8 {[%emt 0:01:36]} 23. b3 {[%emt 0:02:04]} Rb5 {[%emt 0:03:55]} 24. Rc3 {[%emt 0:01:43]} Qf7 {[%emt 0:05:28]} 25. Rxc6 {[%emt 0:01:49]} Re6 {[%emt 0:00:39]} 26. Rec1 {[%emt 0:05:56]} Rb7 {[%emt 0:01:47]} 27. Qg4 {[%emt 0:04:26]} f5 {[%emt 0:03:39]} 28. Qh4 {[%emt 0:04:55]} Re7 {[%emt 0:06:07]} 29. Ba5 {[%emt 0:08:17]} h6 {[%emt 0:01:29] normal} 1-0

[Event "GER-ch Youth U10w 2019"]
[Site "Willingen"]
[Date "2019.06.14"]
[Round "9.2"]
[White "Wartenberg, Alissa"]
[Black "Proettel, Ela"]
[Result "1-0"]
[ECO "B01"]
[WhiteElo "1291"]
[BlackElo "1333"]
[Annotator "NA"]
[PlyCount "87"]
[EventDate "2019.06.07"]
[EventType "swiss"]
[EventRounds "11"]
[EventCountry "GER"]
[SourceTitle "playchess.com"]
[Source "ChessBase"]
[SourceQuality "1"]
[TimeControl "40/4500+30:900+30"]

1. e4 d5 {[%emt 0:00:00]} 2. exd5 {[%emt 0:00:00]} Qxd5 {[%emt 0:00:00]} 3. Nc3 {[%emt 0:00:00]} Qd6 {[%emt 0:00:02]} 4. d4 {[%emt 0:00:08]} Nf6 {[%emt 0:00:21]} 5. Nf3 {[%emt 0:00:15]} a6 {[%emt 0:00:11]} 6. Be3 {[%emt 0:01:15]} Bg4 {[%emt 0:00:51]} 7. Be2 {[%emt 0:00:22]} e6 {[%emt 0:00:18]} 8. O-O {[%emt 0:00:19]} Be7 {[%emt 0:00:19]} 9. h3 {[%emt 0:00:27]} Bh5 {[%emt 0:00:30]} 10. Qd2 {[%emt 0:00:41]} O-O {[%emt 0:01:21]} 11. Bf4 {[%emt 0:00:28]} Qd7 {[%emt 0:01:34]} 12. Ne5 {[%emt 0:00:45]} Qd8 {[%emt 0:01:06]} 13. Qd1 {[%emt 0:01:58]} Bxe2 {[%emt 0:03:26]} 14. Nxe2 {[%emt 0:00:19]} Nd5 {[%emt 0:08:42]} 15. Bh2 {[%emt 0:05:21]} Bd6 {[%emt 0:08:18]} 16. c4 {[%emt 0:01:26]} Bxe5 {[%emt 0:03:01]} 17. Bxe5 {[%emt 0:00:20]} Nb6 {[%emt 0:03:05]} 18. b3 {[%emt 0:00:17]} Nc6 {[%emt 0:01:23]} 19. Bf4 {[%emt 0:01:08]} Qd7 {[%emt 0:04:07]} 20. Qd2 {[%emt 0:03:19]} Rad8 {[%emt 0:02:36]} 21. Rad1 {[%emt 0:01:10]} Rfe8 {[%emt 0:12:54]} 22. Qe3 {[%emt 0:02:48]} h6 {[%emt 0:07:23]} 23. Qg3 {[%emt 0:00:37]} Rc8 {[%emt 0:11:38]} 24. Bxh6 {[%emt 0:00:14]} f6 {[%emt 0:02:17]} 25. Nf4 {[%emt 0:00:56]} Re7 {[%emt 0:05:02]} 26. Nh5 {[%emt 0:02:06]} Kh8 {[%emt 0:05:31]} 27. Be3 {[%emt 0:00:35]} g5 {[%emt 0:01:45]} 28. Nxf6 {[%emt 0:00:27]} Qd8 {[%emt 0:00:32]} 29. Qxg5 {[%emt 0:00:27]} Qd7 {[%emt 0:00:42]} 30. Nxd7 {[%emt 0:00:09]} Nxd7 {[%emt 0:00:20]} 31. d5 {[%emt 0:00:22]} Rg8 {[%emt 0:00:32]} 32. Qh4+ {[%emt 0:01:01]} Rh7 {[%emt 0:00:22]} 33. Qe4 {[%emt 0:00:20]} Nf6 {[%emt 0:00:39]} 34. Qxe6 {[%emt 0:05:14]} Ne8 {[%emt 0:00:31]} 35. dxc6 {[%emt 0:00:07]} bxc6 {[%emt 0:00:19]} 36. Rd8 {[%emt 0:00:25]} Rhg7 {[%emt 0:00:50]} 37. Bd4 {[%emt 0:00:24]} Kh7 {[%emt 0:00:20]} 38. Bxg7 {[%emt 0:00:23]} Rxg7 {[%emt 0:00:31]} 39. Rxe8 {[%emt 0:00:37]} c5 {[%emt 0:00:34]} 40. Rd1 {[%emt 0:00:30]} c6 {[%emt 0:00:26]} 41. Rd7 {[%emt 0:15:19]} a5 {[%emt 0:15:32]} 42. Rh8+ {[%emt 0:00:20]} Kxh8 {[%emt 0:00:21]} 43. Qh6+ {[%emt 0:00:15]} Kg8 {[%emt 0:00:45]} 44. Qxg7# {normal} 1-0

[Event "GER-ch Youth U10w 2019"]
[Site "Willingen"]
[Date "2019.06.14"]
[Round "9.3"]
[White "Glotz, Diana"]
[Black "Bangiev, Katharina"]
[Result "1-0"]
[ECO "A10"]
[WhiteElo "1244"]
[BlackElo "1003"]
[Annotator "NA"]
[PlyCount "53"]
[EventDate "2019.06.07"]
[EventType "swiss"]
[EventRounds "11"]
[EventCountry "GER"]
[SourceTitle "playchess.com"]
[Source "ChessBase"]
[SourceQuality "1"]
[TimeControl "40/4500+30:900+30"]

1. c4 {[%emt 0:00:00]} g6 {[%emt 0:00:00]} 2. Nc3 {[%emt 0:00:00]} Bg7 {[%emt 0:00:00]} 3. g3 {[%emt 0:00:20]} Nf6 {[%emt 0:00:00]} 4. Bg2 {[%emt 0:00:45]} O-O {[%emt 0:00:13]} 5. e3 {[%emt 0:00:43]} d6 {[%emt 0:00:17]} 6. d4 {[%emt 0:00:59]} Nc6 {[%emt 0:00:12]} 7. Rb1 {[%emt 0:00:56]} e5 {[%emt 0:00:27]} 8. Nge2 {[%emt 0:00:46]} Re8 {[%emt 0:01:53]} 9. O-O {[%emt 0:00:48]} Bd7 {[%emt 0:01:38]} 10. b4 {[%emt 0:03:25]} a6 {[%emt 0:01:05]} 11. a4 {[%emt 0:00:58]} Qc8 {[%emt 0:02:35]} 12. Re1 {[%emt 0:01:51]} Bh3 {[%emt 0:01:39]} 13. Bh1 {[%emt 0:01:48]} Nh5 {[%emt 0:05:48]} 14. Nd5 {[%emt 0:15:42]} Be6 {[%emt 0:02:45]} 15. Qd3 {[%emt 0:08:43]} exd4 {[%emt 0:01:20]} 16. exd4 {[%emt 0:08:28]} Bf5 {[%emt 0:00:14]} 17. Qb3 {[%emt 0:15:21]} Bxb1 {[%emt 0:00:19]} 18. Qxb1 {[%emt 0:00:10]} Nxd4 {[%emt 0:00:27]} 19. Qa2 {[%emt 0:04:15]} Nxe2+ {[%emt 0:04:19]} 20. Rxe2 {[%emt 0:00:10]} Rxe2 {[%emt 0:00:22]} 21. Qxe2 {[%emt 0:00:12]} Nf6 {[%emt 0:00:46]} 22. Ne7+ {[%emt 0:00:12]} Kf8 {[%emt 0:03:30]} 23. Nxc8 {[%emt 0:00:06]} Rxc8 {[%emt 0:00:06]} 24. Bxb7 {[%emt 0:01:02]} Rb8 {[%emt 0:00:26]} 25. Bxa6 {[%emt 0:01:29]} Rxb4 {[%emt 0:00:08]} 26. Qc2 {[%emt 0:02:08]} Nd7 {[%emt 0:01:56]} 27. Bb5 {[%emt 0:03:29] normal} 1-0

[Event "GER-ch Youth U10w 2019"]
[Site "Willingen"]
[Date "2019.06.14"]
[Round "9.4"]
[White "Ezold, Johanna Sophie"]
[Black "Haug, Mara"]
[Result "1-0"]
[ECO "B07"]
[WhiteElo "1076"]
[BlackElo "1097"]
[Annotator "NA"]
[PlyCount "61"]
[EventDate "2019.06.07"]
[EventType "swiss"]
[EventRounds "11"]
[EventCountry "GER"]
[SourceTitle "playchess.com"]
[Source "ChessBase"]
[SourceQuality "1"]
[TimeControl "40/4500+30:900+30"]

1. e4 {[%emt 0:00:00]} d6 {[%emt 0:00:00]} 2. d4 {[%emt 0:00:19]} Nf6 {[%emt 0:00:00]} 3. Nc3 {[%emt 0:00:13]} g6 {[%emt 0:00:07]} 4. Bc4 {[%emt 0:00:57]} Bg7 {[%emt 0:01:28]} 5. Nf3 {[%emt 0:00:41]} Nxe4 {[%emt 0:02:00]} 6. Ng5 {[%emt 0:04:36]} Nxg5 {[%emt 0:02:30]} 7. Bxg5 {[%emt 0:00:23]} O-O {[%emt 0:04:04]} 8. Qe2 {[%emt 0:00:57]} Re8 {[%emt 0:06:29]} 9. O-O {[%emt 0:00:10]} h6 {[%emt 0:09:33]} 10. Bh4 {[%emt 0:01:00]} Qd7 {[%emt 0:03:13]} 11. Rad1 {[%emt 0:02:02]} Qg4 {[%emt 0:03:36]} 12. Qxg4 {[%emt 0:01:05]} Bxg4 {[%emt 0:00:09]} 13. Rde1 {[%emt 0:00:19]} g5 {[%emt 0:01:52]} 14. Bg3 {[%emt 0:00:24]} Bxd4 {[%emt 0:00:24]} 15. Nd5 {[%emt 0:02:59]} Be6 {[%emt 0:03:01]} 16. Rxe6 {[%emt 0:07:35]} fxe6 {[%emt 0:00:22]} 17. Nxc7 {[%emt 0:00:14]} Rd8 {[%emt 0:02:56]} 18. Nxa8 {[%emt 0:00:19]} d5 {[%emt 0:02:00]} 19. Bb3 {[%emt 0:00:13]} Na6 {[%emt 0:00:29]} 20. Nc7 {[%emt 0:00:10]} Bxb2 {[%emt 0:01:35]} 21. Nxe6 {[%emt 0:00:30]} Rd7 {[%emt 0:01:00]} 22. Ba4 {[%emt 0:00:33]} b5 {[%emt 0:01:07]} 23. Bxb5 {[%emt 0:00:10]} Rb7 {[%emt 0:00:08]} 24. Bxa6 Rb6 {[%emt 0:00:04]} 25. Bc8 {[%emt 0:02:06]} Rb8 {[%emt 0:04:18]} 26. Bd7 {[%emt 0:00:09]} Rb7 {[%emt 0:00:40]} 27. Nc5 {[%emt 0:00:17]} Rb4 {[%emt 0:01:04]} 28. Nd3 {[%emt 0:00:21]} Rb7 {[%emt 0:00:16]} 29. Be6+ {[%emt 0:00:23]} Kf8 {[%emt 0:00:32]} 30. Nxb2 {[%emt 0:00:28]} Rxb2 {[%emt 0:00:11]} 31. Bxd5 {[%emt 0:00:10] normal} 1-0